bitfinex/quotes_SOLUSD_20250717
["timestamp","ask_amount","ask_price","bid_price","bid_amount"]
[1752754737211,5.71149536,176.01,175.97,5.98272752]
[1752754737542,5.71149536,176.01,175.97,0.7]
[1752754737812,5.71149536,176.01,175.97,5.98272752]
[1752754738007,5.71149536,176.01,175.97,5.28272752]
[1752754738390,6.23149536,176.01,175.96,5.28272752]
[1752754738588,6.23149536,176.01,175.96,5.98272752]
[1752754739189,20.43523378,176.01,175.96,5.98272752]
[1752754740000,20.43523378,176.01,175.97,5.28272752]
[1752754740311,5.71149536,176.01,175.98,5.96272752]
[1752754741109,0.52,176.0,175.94,30.26]
[1752754741322,0.52,176.0,175.95,5.28272752]
[1752754741726,19.91523378,176.01,175.97,5.28272752]
[1752754742823,5.71149536,176.01,175.98,0.68]
[1752754743114,5.71149536,176.01,175.96,0.4]
[1752754743414,5.71149536,176.01,175.98,5.20263036]
[1752754744223,0.52,176.0,175.96,5.68272752]
[1752754744721,0.52,176.0,175.96,0.4]
[1752754745064,5.28272752,175.98,175.94,30.26]
[1752754745317,0.52,175.97,175.92,5.28272752]
[1752754745527,19.8874936,175.99,175.94,5.28272752]
[1752754745528,20.4074936,175.99,175.94,5.28272752]
[1752754745818,25.69022112,175.99,175.94,5.96272752]
[1752754746013,20.4074936,175.99,175.94,5.96272752]
[1752754746210,19.8874936,175.99,175.94,5.96272752]
[1752754746407,19.8874936,175.99,175.95,0.68]
[1752754747030,19.8874936,175.99,175.96,0.68]
[1752754747495,19.8874936,175.99,175.97,0.68]
[1752754747819,5.68214103,175.99,175.97,0.68]
[1752754748020,5.68214103,175.99,175.92,6.08439115]
[1752754748021,5.68214103,175.99,175.98,5.96272752]
[1752754749302,0.03,176.01,175.98,5.96272752]
[1752754750030,0.03,176.01,175.99,0.68]
[1752754750431,0.52,176.0,175.95,35.48272752]
[1752754750634,0.52,175.99,175.95,30.2]
[1752754751008,5.28272752,176.0,175.95,30.2]
[1752754751209,5.80272752,176.0,175.95,30.88]
[1752754751425,5.68214103,175.99,175.95,30.88]
[1752754751817,5.68214103,175.99,175.95,36.16272752]
[1752754752125,5.80272752,175.98,175.95,30.2]
[1752754752326,5.80272752,175.97,175.92,5.28272752]
[1752754752628,5.80272752,175.97,175.92,5.96272752]
[1752754752934,5.28272752,175.98,175.93,5.28272752]
[1752754753109,5.80272752,175.98,175.93,5.96272752]
[1752754753311,5.80272752,175.98,175.89,5.96272752]
[1752754753312,5.28272752,175.95,175.89,5.96272752]
[1752754753630,5.28272752,175.93,175.87,6.13722888]
[1752754753819,0.52,175.95,175.88,5.28272752]
[1752754754130,5.28272752,175.94,175.88,5.28272752]
[1752754754332,5.28272752,175.93,175.87,0.85450136]
[1752754754508,5.28272752,175.93,175.88,5.28272752]
[1752754754824,5.28272752,175.93,175.88,5.96272752]
[1752754755123,5.28272752,175.93,175.89,0.68]
[1752754755721,5.684402,175.92,175.89,0.68]
[1752754756120,5.684402,175.92,175.9,0.68]
[1752754756430,5.684402,175.92,175.91,0.68]
[1752754757725,19.89379086,175.94,175.91,0.68]
[1752754757920,19.89379086,175.94,175.9,5.28272752]
[1752754758132,19.89379086,175.94,175.89,5.28272752]
[1752754758339,25.69651838,175.94,175.89,5.96272752]
[1752754758833,19.89379086,175.94,175.9,0.68]
[1752754758999,19.89379086,175.94,175.91,5.28272752]
[1752754759202,19.89379086,175.94,175.92,0.68]
[1752754759637,19.89379086,175.94,175.9,5.96272752]
[1752754760429,14.21003504,175.94,175.9,5.96272752]
[1752754760728,14.21003504,175.94,175.87,0.54450136]
[1752754760729,14.21003504,175.94,175.91,5.96272752]
[1752754761808,14.21003504,175.94,175.9,5.28272752]
[1752754762008,14.21003504,175.94,175.9,5.96272752]
[1752754762726,14.21003504,175.94,175.9,0.68]
[1752754764246,5.28272752,175.92,175.87,0.14450136]
[1752754764416,5.68472514,175.91,175.87,0.14450136]
[1752754764616,5.28272752,175.9,175.87,0.14450136]
[1752754764825,5.28272752,175.88,175.87,0.14450136]
[1752754767349,10.96842231,175.88,175.87,0.14450136]
[1752754767927,5.68569479,175.88,175.87,0.14450136]
[1752754768644,5.28272752,175.88,175.87,0.14450136]
[1752754769358,5.68537153,175.89,175.87,0.14450136]
[1752754769652,5.68407889,175.93,175.88,5.28272752]
[1752754769954,5.68407889,175.93,175.9,5.28272752]
[1752754770655,5.68407889,175.93,175.91,5.28272752]
[1752754770947,5.68343279,175.95,175.92,5.28272752]
[1752754771335,19.89201477,175.95,175.9,5.28272752]
[1752754771656,19.89201477,175.95,175.88,0.4]
[1752754771948,5.28272752,175.91,175.86,5.28272752]
[1752754772159,5.28272752,175.91,175.85,35.44272752]
[1752754772635,16.78468397,175.94,175.85,35.44272752]
[1752754772837,5.68537153,175.89,175.85,35.44272752]
[1752754774024,19.89880037,175.89,175.85,30.16]
[1752754774228,5.28272752,175.87,175.84,0.3]
[1752754774530,5.28272752,175.86,175.84,0.3]
[1752754774733,5.68666477,175.85,175.84,0.3]
[1752754776353,5.68666477,175.85,175.81,30.39067158]
[1752754776553,5.68666477,175.85,175.81,35.6733991]
[1752754777955,19.90332669,175.85,175.81,30.39067158]
[1752754778157,5.28272752,175.84,175.81,30.39067158]
[1752754778346,5.28272752,175.84,175.81,0.25067158]
[1752754778948,5.6873116,175.83,175.81,0.25067158]
[1752754780158,5.28272752,175.82,175.81,0.25067158]
[1752754780735,5.28272752,175.82,175.81,1e-08]
[1752754781038,16.9741626,175.82,175.81,1e-08]
[1752754781240,10.9703626,175.82,175.81,1e-08]
[1752754781757,57.89504657,175.82,175.81,1e-08]
[1752754781955,26.0,175.79,175.76,1e-08]
[1752754782144,5.28272752,175.77,175.76,1e-08]
[1752754783157,10.97198052,175.77,175.76,1e-08]
[1752754783557,5.689253,175.77,175.76,1e-08]
[1752754784157,10.97198052,175.77,175.76,1e-08]
[1752754785744,27.75666449,175.77,175.76,1e-08]
[1752754785956,10.97198052,175.77,175.76,1e-08]
[1752754786565,5.689253,175.77,175.76,1e-08]
[1752754787055,5.689253,175.77,175.74,5.28272752]
[1752754787451,19.91012002,175.79,175.71,26.0]
[1752754787674,25.19284754,175.79,175.71,26.4]
[1752754787869,5.28272752,175.78,175.73,5.28272752]
[1752754788165,25.19284754,175.79,175.73,5.28272752]
[1752754788368,25.19284754,175.79,175.74,5.28272752]
[1752754788672,19.91012002,175.79,175.75,5.28272752]
[1752754789471,14.2215143,175.79,175.75,5.28272752]
[1752754789765,5.68828213,175.8,175.77,5.28272752]
[1752754789967,5.68828213,175.8,175.75,30.12]
[1752754790271,5.68828213,175.8,175.77,5.28272752]
[1752754791560,14.22022465,175.81,175.77,5.28272752]
[1752754791869,14.22022465,175.81,175.75,30.12]
[1752754791870,5.28272752,175.78,175.72,61.40272752]
[1752754792470,5.28272752,175.77,175.72,56.12]
[1752754792648,5.28272752,175.77,175.72,61.40272752]
[1752754793049,5.28272752,175.77,175.72,56.12]
[1752754793261,5.28272752,175.77,175.72,61.40272752]
[1752754793459,5.68957669,175.76,175.72,61.40272752]
[1752754794349,5.68957669,175.76,175.73,5.28272752]
[1752754794554,5.68957669,175.76,175.74,5.28272752]
[1752754794761,5.68957669,175.76,175.72,56.12]
[1752754794960,5.68957669,175.76,175.74,5.28272752]
[1752754795772,5.28272752,175.81,175.75,5.28272752]
[1752754795950,5.28272752,175.81,175.76,5.28272752]
[1752754796150,19.50219485,175.82,175.77,5.28272752]
[1752754796971,5.68795859,175.81,175.78,5.28272752]
[1752754797363,5.6873116,175.83,175.79,5.28272752]
[1752754797881,5.28272752,175.81,175.77,30.1]
[1752754798059,5.6873116,175.83,175.79,5.28272752]
[1752754798372,10.96906892,175.86,175.81,5.28272752]
[1752754799477,25.18492243,175.86,175.8,5.28272752]
[1752754800058,5.28272752,175.84,175.78,5.28272752]
[1752754800263,5.28272752,175.83,175.77,35.78272752]
[1752754800575,5.28272752,175.83,175.77,35.38272752]
[1752754800875,5.68828213,175.8,175.77,26.0]
[1752754801260,14.15987656,175.8,175.76,0.4]
[1752754801463,8.47159443,175.77,175.75,30.1]
[1752754801783,8.47159443,175.77,175.72,0.46]
[1752754801979,8.47159443,175.76,175.72,0.46]
[1752754802154,8.47159443,175.74,175.72,0.06]
[1752754802351,8.47159443,175.73,175.72,0.06]
[1752754802977,14.16214242,175.73,175.72,0.06]
[1752754803477,5.69054799,175.73,175.72,0.06]
[1752754803680,14.16214242,175.73,175.72,0.06]
[1752754803876,5.69054799,175.73,175.72,0.06]
[1752754804990,5.69022419,175.74,175.72,0.06]
[1752754806173,14.16149485,175.75,175.72,0.06]
[1752754806870,5.68990042,175.75,175.72,0.06]
[1752754807354,14.16149485,175.75,175.72,0.06]
[1752754808069,8.47159443,175.74,175.72,0.06]
[1752754808878,8.47159443,175.75,175.72,0.06]
[1752754809275,19.91012002,175.79,175.72,0.06]
[1752754810058,48.35314863,175.79,175.72,0.06]
[1752754810577,8.47159443,175.75,175.72,0.06]
[1752754810780,8.47159443,175.74,175.72,0.06]
[1752754811592,8.47159443,175.73,175.72,0.06]
[1752754812386,14.16214242,175.73,175.72,0.06]
[1752754813393,5.69054799,175.73,175.72,0.06]
[1752754815286,14.16214242,175.73,175.72,0.06]
[1752754815870,8.47159443,175.78,175.72,8.53159443]
[1752754816062,19.91068577,175.79,175.73,8.47159443]
[1752754816465,8.47159443,175.78,175.73,8.47159443]
[1752754817085,5.689253,175.77,175.72,0.46]
[1752754817394,5.689253,175.77,175.73,8.47159443]
[1752754819298,5.689253,175.77,175.73,8.53159443]
[1752754819673,5.689253,175.77,175.74,8.47159443]
[1752754819876,5.71902319,175.78,175.75,8.47159443]
[1752754820077,0.03,175.78,175.77,8.47159443]
[1752754820503,5.71892934,175.78,175.77,8.47159443]
[1752754820680,5.71892934,175.78,175.76,8.47159443]
[1752754821298,5.71892934,175.78,175.73,0.46]
[1752754821299,0.03,175.78,175.75,34.47159443]
[1752754822397,0.03,175.78,175.75,26.0]
[1752754822598,8.50159443,175.78,175.75,26.0]
[1752754822892,0.03,175.78,175.75,26.0]
[1752754823800,0.03,175.78,175.75,34.47159443]
[1752754824188,0.03,175.78,175.76,8.47159443]
[1752754824393,0.03,175.78,175.77,8.47159443]
[1752754825107,0.03,175.78,175.76,34.47159443]
[1752754825299,0.03,175.78,175.76,26.0]
[1752754825504,0.03,175.78,175.76,34.47159443]
[1752754827086,0.03,175.78,175.76,31.29427825]
[1752754827711,0.03,175.78,175.77,0.67]
[1752754829319,0.03,175.78,175.77,6.36427825]
[1752754829813,0.03,175.78,175.77,5.69427825]
[1752754830026,0.03,175.78,175.77,6.36427825]
[1752754830188,0.03,175.78,175.77,1.07]
[1752754831193,0.03,175.78,175.77,6.36427825]
[1752754832619,0.03,175.78,175.77,0.4]
[1752754832791,5.84427825,175.78,175.73,0.46]
[1752754832991,5.29427825,175.74,175.73,0.06]
[1752754833190,10.98450244,175.74,175.73,0.06]
[1752754833490,11.50450244,175.74,175.73,0.06]
[1752754833804,11.50450244,175.74,175.72,0.06]
[1752754834120,6.21022419,175.74,175.72,0.06]
[1752754834286,5.81427825,175.73,175.72,0.06]
[1752754834917,5.29427825,175.73,175.72,0.06]
[1752754835159,10.98482624,175.73,175.72,0.06]
[1752754835489,5.69054799,175.73,175.72,0.73]
[1752754835690,10.98482624,175.73,175.72,0.73]
[1752754835914,10.98482624,175.73,175.72,0.06]
[1752754836588,11.50482624,175.73,175.72,0.06]
[1752754837223,25.73119623,175.73,175.66,26.0]
[1752754837418,5.29427825,175.69,175.65,30.08]
[1752754837590,5.29427825,175.69,175.65,30.75]
[1752754837927,5.29427825,175.68,175.65,0.06]
[1752754838092,5.29427825,175.66,175.65,0.06]
[1752754839321,10.98709391,175.66,175.65,0.06]
[1752754839516,5.69281566,175.66,175.65,0.06]
[1752754839828,10.98709391,175.66,175.65,0.06]
[1752754840004,11.50709391,175.66,175.65,0.06]
[1752754840205,10.98709391,175.66,175.65,0.06]
[1752754842330,5.29427825,175.69,175.65,0.74]
[1752754842713,5.29427825,175.68,175.65,0.74]
[1752754843120,30.0,175.71,175.66,0.68]
[1752754843322,5.69184358,175.69,175.65,0.06]
[1752754843519,5.69184358,175.69,175.66,5.97427825]
[1752754843736,5.69119572,175.71,175.67,5.97427825]
[1752754843933,5.69119572,175.71,175.68,0.68]
[1752754844138,5.69119572,175.71,175.69,0.68]
[1752754845331,14.16976998,175.72,175.69,0.68]
[1752754845939,5.69087184,175.72,175.69,0.68]
[1752754846854,5.69087184,175.72,175.7,0.68]
[1752754847140,5.69087184,175.72,175.68,0.68]
[1752754847437,5.69087184,175.72,175.69,0.68]
[1752754848340,28.91694958,175.72,175.67,9.15889814]
[1752754848515,8.99889814,175.71,175.65,9.61889814]
[1752754848833,19.91805144,175.72,175.66,0.68]
[1752754849035,28.39694958,175.72,175.67,8.47889814]
[1752754849227,20.43805144,175.72,175.67,9.15889814]
[1752754849428,28.91694958,175.72,175.67,0.68]
[1752754849609,28.39694958,175.72,175.68,0.68]
[1752754849811,8.99889814,175.71,175.65,35.21889814]
[1752754850026,0.52,175.71,175.65,35.21889814]
[1752754850233,8.99889814,175.71,175.66,9.15889814]
[1752754850621,8.99889814,175.71,175.66,8.47889814]
[1752754850820,8.99889814,175.71,175.67,0.68]
[1752754851035,8.99889814,175.71,175.65,34.53889814]
[1752754851342,8.47889814,175.69,175.65,26.06]
[1752754851514,5.69216757,175.68,175.65,26.06]
[1752754851914,5.69216757,175.68,175.65,26.74]
[1752754852941,5.69216757,175.68,175.66,9.15889814]
[1752754853241,5.69119572,175.71,175.67,9.15889814]
[1752754853543,5.69119572,175.71,175.65,35.73309977]
[1752754853544,5.69054799,175.73,175.68,9.15889814]
[1752754853748,5.69054799,175.73,175.69,0.68]
[1752754854122,5.69054799,175.73,175.7,0.68]
[1752754854324,5.69054799,175.73,175.71,0.68]
[1752754854528,5.69054799,175.73,175.72,0.68]
[1752754855031,28.91581612,175.73,175.68,35.15889814]
[1752754855236,28.91581612,175.73,175.68,26.68]
[1752754856549,8.99889814,175.72,175.68,26.0]
[1752754856726,8.47889814,175.71,175.66,9.55889814]
[1752754856925,8.47889814,175.71,175.67,0.68]
[1752754857244,8.47889814,175.71,175.68,0.68]
[1752754858150,5.69151963,175.7,175.68,0.68]
[1752754858446,5.69151963,175.7,175.66,34.87889814]
[1752754858619,5.69151963,175.7,175.67,0.68]
[1752754859049,5.69151963,175.7,175.66,34.87889814]
[1752754859232,5.69151963,175.7,175.68,0.68]
[1752754860043,5.69151963,175.7,175.66,35.55889814]
[1752754860246,8.47889814,175.69,175.65,0.06]
[1752754860433,8.47889814,175.69,175.65,0.74]
[1752754860630,8.47889814,175.69,175.66,0.68]
[1752754861447,28.39921685,175.7,175.65,0.06]
[1752754861753,5.69151963,175.7,175.66,9.15889814]
[1752754861958,8.99889814,175.69,175.65,0.06]
[1752754862257,5.69216757,175.68,175.65,0.74]
[1752754862461,5.69216757,175.68,175.66,0.68]
[1752754862753,5.69216757,175.68,175.67,0.68]
[1752754863839,8.47889814,175.69,175.65,1.14]
[1752754864328,19.92031871,175.7,175.66,0.68]
[1752754864523,5.69151963,175.7,175.67,0.68]
[1752754864740,5.69151963,175.7,175.67,9.15889814]
[1752754864943,5.69151963,175.7,175.68,0.68]
[1752754865137,5.69151963,175.7,175.66,8.47889814]
[1752754865341,5.69151963,175.7,175.67,0.68]
[1752754865553,5.69151963,175.7,175.68,0.68]
[1752754866149,19.91947508,175.71,175.65,0.46]
[1752754866336,28.39837322,175.71,175.66,9.15889814]
[1752754866537,19.91947508,175.71,175.67,0.68]
[1752754867136,16.78468397,175.67,175.64,1e-08]
[1752754867459,16.78468397,175.67,175.57,2.0786]
[1752754867460,16.78468397,175.64,175.57,0.06]
[1752754867630,5.29995339,175.58,175.57,0.06]
[1752754867826,5.29995339,175.58,175.57,1e-08]
[1752754868127,11.51536288,175.58,175.57,1e-08]
[1752754868549,5.69540949,175.58,175.57,1e-08]
[1752754869242,14.18672249,175.58,175.57,1e-08]
[1752754869761,5.69540949,175.58,175.57,1e-08]
[1752754870761,8.491313,175.61,175.57,0.68000001]
[1752754870963,5.69411228,175.62,175.58,8.491313]
[1752754871139,5.69411228,175.62,175.59,0.68]
[1752754871858,5.69411228,175.62,175.6,0.68]
[1752754872440,5.69378807,175.63,175.6,0.68]
[1752754873753,5.69378807,175.63,175.57,1e-08]
[1752754873754,28.41957126,175.63,175.58,9.171313]
[1752754874149,8.491313,175.6,175.57,1e-08]
[1752754874353,8.491313,175.58,175.57,1e-08]
[1752754875268,9.011313,175.58,175.57,1e-08]
[1752754875638,8.491313,175.58,175.57,1e-08]
[1752754876351,14.18672249,175.58,175.57,1e-08]
[1752754877380,14.70672249,175.58,175.57,1e-08]
[1752754878660,16.78468397,175.57,175.54,1e-08]
[1752754878861,8.491313,175.55,175.54,1e-08]
[1752754879359,9.011313,175.55,175.54,1e-08]
[1752754879752,8.491313,175.55,175.54,1e-08]
[1752754880048,9.011313,175.55,175.54,1e-08]
[1752754880565,14.70769579,175.55,175.54,1e-08]
[1752754880749,33.01327976,175.55,175.54,1e-08]
[1752754880945,59.01327976,175.55,175.54,1e-08]
[1752754881757,101.73615073,175.55,175.47,0.1]
[1752754881952,16.78468397,175.53,175.47,0.1]
[1752754882157,8.491313,175.49,175.47,0.78]
[1752754882374,29.94,175.52,175.47,0.78]
[1752754882375,30.46,175.52,175.47,0.1]
[1752754882677,5.69865511,175.48,175.47,0.1]
[1752754883250,14.18996811,175.48,175.47,1e-08]
[1752754883564,44.12996811,175.48,175.47,1e-08]
[1752754884571,44.64996811,175.48,175.47,1e-08]
[1752754884745,36.15865511,175.48,175.47,1e-08]
[1752754884946,35.63865511,175.48,175.47,1e-08]
[1752754885164,44.12996811,175.48,175.47,1e-08]
[1752754885366,44.64996811,175.48,175.47,1e-08]
[1752754885567,61.43465208,175.48,175.47,1e-08]
[1752754886873,62.99525208,175.48,175.47,1e-08]
[1752754887698,65.96109471,175.48,175.47,1e-08]
[1752754888480,62.99525208,175.48,175.47,1e-08]
[1752754889674,65.96140621,175.48,175.47,1e-08]
[1752754889991,65.96140621,175.48,175.39,0.06]
[1752754889992,16.78468397,175.44,175.39,0.06]
[1752754890289,25.27599697,175.4,175.36,0.1]
[1752754890453,8.491313,175.37,175.36,0.1]
[1752754890651,38.431313,175.37,175.36,0.1]
[1752754890849,19.9589416,175.36,175.31,0.68]
[1752754891151,29.94,175.35,175.29,0.68]
[1752754891352,38.431313,175.35,175.29,9.171313]
[1752754891578,38.431313,175.35,175.3,0.68]
[1752754891981,38.431313,175.35,175.31,0.68]
[1752754892153,29.94,175.35,175.32,0.68]
[1752754892353,38.431313,175.35,175.33,0.68]
[1752754893177,5.7032052,175.34,175.33,0.68]
[1752754893578,5.7032052,175.34,175.31,0.68]
[1752754893776,5.7032052,175.34,175.33,0.68]
[1752754894083,5.7032052,175.34,175.31,0.68]
[1752754894285,5.7032052,175.34,175.3,8.491313]
[1752754894484,5.7032052,175.34,175.32,0.68]
[1752754895586,28.4525312,175.34,175.3,0.68]
[1752754895754,8.491313,175.32,175.28,0.68]
[1752754895960,29.94,175.31,175.28,0.68]
[1752754896281,29.94,175.31,175.27,26.0]
[1752754896282,29.94,175.32,175.29,9.171313]
[1752754896472,29.94,175.32,175.3,0.68]
[1752754896676,29.94,175.32,175.31,0.68]
[1752754897063,29.94,175.33,175.31,0.68]
[1752754897582,29.94,175.33,175.27,26.0]
[1752754897583,29.94,175.33,175.32,0.68]
[1752754897759,5.7032052,175.34,175.32,0.68]
[1752754897959,5.70222957,175.37,175.33,8.491313]
[1752754898169,5.70092925,175.41,175.36,8.491313]
[1752754898482,5.6999544,175.44,175.4,8.491313]
[1752754898790,5.6999544,175.44,175.42,8.491313]
[1752754898973,5.6999544,175.44,175.43,9.171313]
[1752754899161,5.6999544,175.44,175.43,0.68]
[1752754899360,5.6999544,175.44,175.4,9.171313]
[1752754899558,5.6999544,175.44,175.41,9.171313]
[1752754899789,5.6999544,175.44,175.42,0.66]
[1752754899987,5.6999544,175.44,175.42,8.491313]
[1752754900195,5.6999544,175.44,175.43,0.66]
[1752754900686,5.6999544,175.44,175.43,9.151313]
[1752754901182,8.491313,175.45,175.4,0.66]
[1752754901362,8.491313,175.45,175.41,0.66]
[1752754902388,19.94756639,175.46,175.42,9.151313]
[1752754902596,19.94756639,175.46,175.43,0.66]
[1752754902885,5.69930468,175.46,175.43,0.66]
[1752754903060,5.69930468,175.46,175.44,0.66]
[1752754903967,5.69930468,175.46,175.45,0.66]
[1752754904377,17.30468397,175.52,175.45,9.151313]
[1752754904378,31.02860916,175.52,175.45,9.151313]
[1752754904578,35.61768104,175.51,175.47,8.491313]
[1752754904785,49.86188364,175.51,175.48,0.66]
[1752754904992,49.86188364,175.51,175.49,0.66]
[1752754905293,49.86188364,175.51,175.47,0.66]
[1752754905476,58.35319664,175.51,175.47,0.66]
[1752754906001,8.491313,175.49,175.45,0.66]
[1752754906297,8.491313,175.48,175.43,9.151313]
[1752754906471,8.491313,175.48,175.44,0.66]
[1752754906992,8.491313,175.47,175.42,30.58]
[1752754907197,0.03,175.46,175.42,0.66]
[1752754907368,14.22061768,175.46,175.42,0.66]
[1752754907763,5.72930468,175.46,175.43,0.66]
[1752754907989,5.72930468,175.46,175.42,8.491313]
[1752754908294,19.97756639,175.46,175.41,26.0]
[1752754908494,28.46887939,175.46,175.41,26.0]
[1752754908696,58.38887939,175.46,175.41,26.66]
[1752754909289,5.6999544,175.44,175.39,9.151313]
[1752754909599,14.1912674,175.44,175.4,26.66]
[1752754910285,5.6999544,175.44,175.41,0.66]
[1752754910696,19.9498404,175.44,175.4,26.0]
[1752754911004,28.4411534,175.44,175.4,26.66]
[1752754911298,28.4411534,175.44,175.41,0.66]
[1752754911299,19.9498404,175.44,175.41,0.66]
[1752754911792,28.4411534,175.44,175.41,0.66]
[1752754911998,8.491313,175.43,175.39,0.66]
[1752754912703,8.491313,175.4,175.37,26.0]
[1752754913009,8.491313,175.38,175.34,0.66]
[1752754913298,5.70222957,175.37,175.34,0.66]
[1752754913673,5.70222957,175.37,175.35,0.66]
[1752754914324,5.70157933,175.39,175.36,0.66]
[1752754914492,5.70157933,175.39,175.36,9.151313]
[1752754914823,5.70157933,175.39,175.37,9.151313]
[1752754915126,5.70157933,175.39,175.37,0.66]
[1752754915305,5.70092925,175.41,175.36,8.491313]
[1752754915500,8.491313,175.39,175.33,8.491313]
[1752754915815,8.491313,175.36,175.29,0.72]
[1752754915989,8.491313,175.35,175.29,35.211313]
[1752754916190,8.491313,175.35,175.3,0.66]
[1752754916503,8.491313,175.35,175.31,0.66]
[1752754917094,8.491313,175.36,175.32,0.66]
[1752754917621,5.70287995,175.35,175.33,0.66]
[1752754917796,5.70287995,175.35,175.33,8.491313]
[1752754917999,5.70125427,175.4,175.34,9.151313]
[1752754918206,5.70125427,175.4,175.37,8.491313]
[1752754918414,5.70125427,175.4,175.38,0.66]
[1752754919326,19.95380276,175.41,175.38,0.66]
[1752754921032,8.491313,175.39,175.29,0.72]
[1752754921193,8.491313,175.33,175.29,0.72]
[1752754921403,29.9,175.35,175.29,1.12]
[1752754921602,29.9,175.35,175.29,9.611313]
[1752754921807,29.9,175.35,175.31,8.491313]
[1752754922007,8.491313,175.36,175.32,0.66]
[1752754922399,8.491313,175.35,175.3,0.66]
[1752754923199,8.491313,175.35,175.31,0.66]
[1752754923398,5.7032052,175.34,175.31,0.66]
[1752754923602,5.7032052,175.34,175.32,0.66]
[1752754924922,19.95780349,175.37,175.3,8.491313]
[1752754925112,5.70222957,175.37,175.33,9.151313]
[1752754925299,5.70222957,175.37,175.34,0.66]
[1752754926321,28.44911649,175.37,175.32,0.66]
[1752754926622,8.491313,175.35,175.3,27.06]
[1752754926833,8.491313,175.35,175.3,26.66]
[1752754927209,5.7032052,175.34,175.3,34.491313]
[1752754927412,5.70190443,175.38,175.33,8.491313]
[1752754927611,5.70190443,175.38,175.36,8.491313]
[1752754927909,5.70190443,175.38,175.37,9.151313]
[1752754928111,5.70190443,175.38,175.35,26.0]
[1752754928309,5.70190443,175.38,175.35,35.151313]
[1752754928517,5.70190443,175.38,175.36,0.66]
[1752754929106,14.25418072,175.39,175.37,0.66]
[1752754929311,14.25418072,175.39,175.36,8.491313]
[1752754929611,14.25418072,175.39,175.35,26.0]
[1752754929814,14.25418072,175.39,175.35,34.491313]
[1752754930010,14.25418072,175.39,175.35,0.72]
[1752754930209,0.52,175.38,175.34,0.46]
[1752754930407,44.15418072,175.39,175.35,9.211313]
[1752754930605,44.15418072,175.39,175.36,0.72]
[1752754931019,44.15418072,175.39,175.34,9.671313]
[1752754931337,49.85576005,175.39,175.35,9.211313]
[1752754931534,19.95576005,175.39,175.37,8.491313]
[1752754931829,19.95576005,175.39,175.38,0.72]
[1752754932008,19.95576005,175.39,175.36,8.491313]
[1752754932209,19.95576005,175.39,175.37,0.72]
[1752754933339,14.25418072,175.39,175.38,0.72]
[1752754934832,5.70092925,175.41,175.38,9.211313]
[1752754935126,5.70092925,175.41,175.4,8.491313]
[1752754935312,14.24973671,175.45,175.4,9.211313]
[1752754935507,5.69962952,175.45,175.43,8.491313]
[1752754935701,5.69962952,175.45,175.44,0.72]
[1752754935904,5.69962952,175.45,175.41,0.72]
[1752754936103,5.69962952,175.45,175.42,9.211313]
[1752754936332,5.69962952,175.45,175.43,9.211313]
[1752754936502,0.03,175.46,175.43,9.211313]
[1752754936503,0.03,175.46,175.43,8.491313]
[1752754936710,0.03,175.46,175.44,0.72]
[1752754937532,0.03,175.46,175.43,8.491313]
[1752754938409,0.03,175.46,175.45,9.211313]
[1752754938611,0.03,175.46,175.45,0.72]
[1752754938811,0.03,175.46,175.43,8.491313]
[1752754939118,0.03,175.46,175.43,9.211313]
[1752754939707,0.03,175.46,175.43,8.491313]
[1752754939915,0.03,175.46,175.44,0.72]
[1752754940128,0.03,175.46,175.42,26.4]
[1752754940330,0.52,175.45,175.42,26.4]
[1752754940546,8.491313,175.45,175.39,65.091313]
[1752754940714,9.011313,175.45,175.39,65.491313]
[1752754940916,8.491313,175.44,175.39,26.72]
[1752754941110,8.491313,175.43,175.39,26.72]
[1752754941325,8.491313,175.44,175.39,26.72]
[1752754941510,8.491313,175.44,175.39,26.0]